bitfinex-derivatives/quotes_BTCF0:USTF0_20241109
["timestamp","ask_amount","ask_price","bid_price","bid_amount"]
[1731115297842,0.46124,76441.0,76437.0,0.065364]
[1731115298143,0.46124,76441.0,76440.0,0.065361]
[1731115298337,0.46056,76441.0,76440.0,0.15506576]
[1731115298842,0.5276137,76441.0,76440.0,0.15506576]
[1731115299142,0.4278537,76441.0,76440.0,0.15506576]
[1731115299545,0.4278537,76441.0,76440.0,0.23350345]
[1731115300136,0.4278537,76441.0,76440.0,0.23350338]
[1731115300936,0.4278537,76441.0,76440.0,0.065361]
[1731115304048,0.0670537,76441.0,76440.0,0.065361]
[1731115304243,0.12219038,76443.0,76440.0,0.065361]
[1731115305540,0.18689533,76443.0,76440.0,0.065361]
[1731115306742,0.18689533,76443.0,76441.0,0.06536]
[1731115308141,0.26248579,76442.0,76441.0,0.06536]
[1731115309139,0.07214348,76442.0,76441.0,0.06536]
[1731115314151,0.07238063,76442.0,76441.0,0.06536]
[1731115315248,0.18689533,76443.0,76441.0,0.06536]
[1731115315557,0.07236592,76442.0,76441.0,0.06536]
[1731115316160,0.01500592,76442.0,76441.0,0.06536]
[1731115319046,0.01500592,76442.0,76440.0,0.06535777]
[1731115319047,0.02822806,76442.0,76440.0,0.06535777]
[1731115319251,0.18689533,76443.0,76440.0,0.06535777]
[1731115319657,0.18689533,76443.0,76441.0,0.06536]
[1731115319861,0.02765147,76442.0,76441.0,0.06536]
[1731115320545,0.02765147,76442.0,76441.0,0.13071777]
[1731115320749,0.02765147,76442.0,76441.0,0.06536]
[1731115321144,0.18689533,76443.0,76441.0,0.06536]
[1731115321341,0.18689533,76443.0,76441.0,0.13071777]
[1731115321547,0.18689533,76443.0,76441.0,0.06536]
[1731115322357,0.18689533,76443.0,76441.0,0.13071777]
[1731115323048,0.18689533,76443.0,76441.0,0.06536]
[1731115323250,0.01507663,76442.0,76441.0,0.06536]
[1731115324259,0.18689533,76443.0,76441.0,0.06535777]
[1731115324459,0.18689533,76443.0,76442.0,0.06536]
[1731115326254,0.20189637,76443.0,76442.0,0.13071777]
[1731115326764,0.20189637,76443.0,76442.0,0.06535777]
[1731115327259,0.20189637,76443.0,76442.0,0.15430224]
[1731115330963,0.20219279,76443.0,76442.0,0.15430224]
[1731115331267,0.34041722,76443.0,76440.0,0.065361]
[1731115331459,0.1350456,76442.0,76440.0,0.065361]
[1731115331655,0.08815826,76441.0,76440.0,0.065361]
[1731115334868,0.08815826,76441.0,76439.0,0.3608]
[1731115335062,0.0480319,76440.0,76439.0,0.3608]
[1731115335960,0.01529283,76440.0,76439.0,0.3608]
[1731115336367,0.08813371,76440.0,76439.0,0.3608]
[1731115336753,0.15349471,76440.0,76439.0,0.3608]
[1731115338155,0.08065383,76440.0,76439.0,0.3608]
[1731115338356,0.08065383,76440.0,76439.0,0.42615777]
[1731115339260,0.08065383,76440.0,76439.0,0.51528723]
[1731115339461,0.08065383,76440.0,76439.0,0.42615777]
[1731115340365,0.10952467,76440.0,76439.0,0.40899041]
[1731115341871,0.10940261,76440.0,76439.0,0.40899041]
[1731115342271,0.08053177,76440.0,76439.0,0.08907509]
[1731115342468,0.10962838,76440.0,76439.0,0.08907509]
[1731115343263,0.10962838,76440.0,76439.0,0.1544622]
[1731115343766,0.18241876,76440.0,76439.0,0.08907509]
[1731115343964,0.18241876,76440.0,76437.0,0.0653882]
[1731115343965,0.11705776,76440.0,76437.0,0.0653882]
[1731115344163,0.18689533,76443.0,76436.0,0.0653882]
[1731115344164,0.13815338,76438.0,76436.0,0.0653882]
[1731115344370,0.0061,76442.0,76435.0,0.0653882]
[1731115344371,0.065365,76436.0,76435.0,0.0653882]
[1731115344567,0.11115001,76436.0,76435.0,0.0653882]
[1731115345273,0.11115001,76436.0,76435.0,0.15415179]
[1731115345463,0.11115001,76436.0,76435.0,0.0653882]
[1731115346363,0.11115001,76436.0,76425.0,0.00196262]
[1731115346364,0.47970496,76436.0,76425.0,0.00196262]
[1731115346561,0.07279038,76428.0,76425.0,0.00196262]
[1731115346775,0.14339577,76426.0,76425.0,0.00196262]
[1731115347069,0.08829072,76426.0,76425.0,0.00196262]
[1731115347270,0.09646884,76426.0,76425.0,0.00196262]
[1731115347466,0.16669601,76426.0,76425.0,0.00196262]
[1731115347669,0.23981596,76426.0,76425.0,0.00196262]
[1731115347871,0.09646884,76426.0,76425.0,0.00196262]
[1731115348872,0.07311995,76426.0,76425.0,0.00196262]
[1731115349071,0.09825933,76426.0,76425.0,0.00196262]
[1731115350471,0.09008115,76426.0,76425.0,0.00196262]
[1731115352374,0.09825933,76426.0,76425.0,0.00196262]
[1731115352782,0.0984575,76426.0,76425.0,0.00196262]
[1731115353282,0.065373,76427.0,76425.0,0.1971101]
[1731115353578,0.065373,76427.0,76425.0,0.00196262]
[1731115353579,0.02533381,76426.0,76425.0,0.00196262]
[1731115353775,0.02533381,76426.0,76425.0,0.19789774]
[1731115355375,0.05739246,76426.0,76425.0,0.19789774]
[1731115355575,0.12276546,76426.0,76425.0,0.19789774]
[1731115356675,0.09743165,76426.0,76425.0,0.19789774]
[1731115356878,0.11453425,76426.0,76425.0,0.19789774]
[1731115357179,0.12271245,76426.0,76425.0,0.19789774]
[1731115357873,0.0906538,76426.0,76425.0,0.19789774]
[1731115358279,0.12271533,76426.0,76425.0,0.1570067]
[1731115358677,0.12271533,76426.0,76425.0,0.10653233]
[1731115359284,0.11453713,76426.0,76425.0,0.10653233]
[1731115360484,0.09743453,76426.0,76425.0,0.10653233]
[1731115360687,0.11405102,76426.0,76425.0,0.10653233]
[1731115361280,0.18635856,76426.0,76419.0,0.0508]
[1731115361476,0.07279038,76422.0,76419.0,0.0508]
[1731115361682,0.080851,76421.0,76419.0,0.0508]
[1731115361876,0.03217298,76420.0,76419.0,0.0508]
[1731115362977,0.03217298,76420.0,76419.0,0.116179]
[1731115363182,0.04884061,76420.0,76419.0,0.116179]
[1731115363694,0.08009405,76420.0,76419.0,0.116179]
[1731115363993,0.04884061,76420.0,76419.0,0.116179]
[1731115364590,0.04819117,76420.0,76419.0,0.116179]
[1731115365384,0.04819117,76420.0,76419.0,0.18896938]
[1731115365997,0.03217298,76420.0,76419.0,0.18896938]
[1731115366894,0.04744504,76420.0,76419.0,0.18896938]
[1731115367703,0.03202046,76420.0,76419.0,0.18896938]
[1731115368001,0.04729369,76420.0,76419.0,0.18896938]
[1731115368394,0.065376,76423.0,76419.0,0.42050296]
[1731115368600,0.065376,76423.0,76420.0,0.38832909]
[1731115368800,0.065376,76423.0,76421.0,0.10713955]
[1731115369005,0.13226167,76427.0,76422.0,0.17251655]
[1731115369197,0.065372,76427.0,76423.0,0.10713955]
[1731115369501,0.065374,76425.0,76424.0,0.10694402]
[1731115372305,0.065374,76425.0,76424.0,0.1071681]
[1731115373312,0.065374,76425.0,76424.0,0.19711306]
[1731115373905,0.14499,76428.0,76424.0,0.19711306]
[1731115374107,0.210362,76428.0,76425.0,0.26248706]
[1731115374301,0.15846308,76428.0,76426.0,0.19711306]
[1731115374509,0.15846308,76428.0,76427.0,0.19711306]
[1731115375299,0.15846308,76428.0,76427.0,0.06537451]
[1731115375505,0.15846308,76428.0,76427.0,0.15524126]
[1731115376399,0.15846308,76428.0,76427.0,0.08986675]
[1731115377104,0.15846308,76428.0,76427.0,0.08986618]
[1731115377602,0.18537487,76428.0,76427.0,0.04897429]
[1731115380207,0.12000287,76428.0,76427.0,0.04897429]
[1731115380408,0.12000287,76428.0,76427.0,0.11434629]
[1731115380803,0.12000287,76428.0,76427.0,0.065372]
[1731115381203,0.09309108,76428.0,76427.0,0.065372]
[1731115383410,0.16524686,76428.0,76427.0,0.065372]
[1731115383917,0.16524686,76428.0,76421.0,0.065377]
[1731115384209,0.07215578,76427.0,76419.0,0.12359038]
[1731115384513,0.07215578,76426.0,76423.0,0.065376]
[1731115384813,0.09309108,76428.0,76423.0,0.065376]
[1731115385014,0.07215578,76427.0,76423.0,0.065376]
[1731115385218,0.07215578,76426.0,76423.0,0.065376]
[1731115385520,0.07215578,76425.0,76424.0,0.065375]
[1731115389611,0.03202039,76425.0,76424.0,0.065375]
[1731115390413,0.09309108,76428.0,76424.0,0.10707667]
[1731115390621,0.09309108,76428.0,76425.0,0.17245067]
[1731115390818,0.09309108,76428.0,76426.0,0.10707667]
[1731115391021,0.09309108,76428.0,76427.0,0.10707667]
[1731115392612,0.09309108,76428.0,76427.0,0.1970133]
[1731115394217,0.1177777,76428.0,76427.0,0.32149328]
[1731115396207,0.09309108,76428.0,76427.0,0.32149328]
[1731115397114,0.09309108,76428.0,76427.0,0.19707036]
[1731115397828,0.15846208,76428.0,76427.0,0.19707036]
[1731115398210,0.46124,76429.0,76427.0,0.39418038]
[1731115398211,0.00068,76429.0,76427.0,0.39418038]
[1731115398527,0.07272498,76428.0,76427.0,0.065372]
[1731115402121,0.03259355,76428.0,76427.0,0.065372]
[1731115402618,0.3608,76431.0,76427.0,0.065372]
[1731115402817,0.03274829,76430.0,76429.0,0.065371]
[1731115405423,0.09972,76437.0,76436.0,0.065365]
[1731115405612,0.09972,76437.0,76436.0,0.25992217]
[1731115407826,0.09972,76437.0,76436.0,0.25959508]
[1731115408731,0.42539996,76438.0,76437.0,0.065364]
[1731115408931,0.06391996,76438.0,76437.0,0.25973978]
[1731115409233,0.0061,76445.0,76443.0,0.065358]
[1731115409431,0.17251038,76444.0,76443.0,0.065358]
[1731115409623,0.17251038,76444.0,76443.0,0.25950647]
[1731115410827,0.17251038,76444.0,76443.0,0.25948878]
[1731115411031,0.17251038,76444.0,76443.0,0.15392286]
[1731115411631,0.19792294,76444.0,76443.0,0.15392286]
[1731115412026,0.17251038,76444.0,76443.0,0.15392286]
[1731115412326,0.06421483,76447.0,76443.0,0.08856486]
[1731115412530,0.1690226,76534.0,76446.0,0.0783225]
[1731115412531,0.36148,76451.0,76446.0,0.0783225]
[1731115412721,0.36148,76451.0,76450.0,0.07279038]
[1731115412722,0.3608,76451.0,76450.0,0.07279038]
[1731115412921,0.38601714,76451.0,76450.0,0.33218899]
[1731115413130,0.3608,76451.0,76450.0,0.33218899]
[1731115413623,0.3608,76451.0,76450.0,0.13814338]
[1731115415028,0.3608,76451.0,76450.0,0.065353]
[1731115417420,0.3608,76451.0,76450.0,0.13814338]
[1731115417619,0.0061,76462.0,76458.0,0.065346]
[1731115417823,0.09972,76459.0,76458.0,0.065346]
[1731115418038,0.165062,76463.0,76462.0,0.065342]
[1731115418235,0.09972,76463.0,76462.0,0.065342]
[1731115418427,0.47346317,76464.0,76463.0,0.065342]
[1731115418632,0.47274317,76464.0,76463.0,0.065342]
[1731115419737,0.42684317,76464.0,76463.0,0.065342]
[1731115420033,0.3608,76464.0,76463.0,0.065342]
[1731115420536,0.48126167,76464.0,76462.0,0.07279038]
[1731115420836,0.26335943,76463.0,76462.0,0.13813238]
[1731115421129,0.065344,76460.0,76456.0,0.065347]
[1731115421336,0.13813738,76457.0,76447.0,0.40762]
[1731115421540,0.07279038,76453.0,76452.0,0.06535]
[1731115421833,0.14637687,76453.0,76452.0,0.06535]
[1731115424131,0.07358649,76453.0,76452.0,0.06535]
[1731115426146,0.07316379,76453.0,76452.0,0.06535]
[1731115428636,0.11966894,76457.0,76453.0,0.06535]
[1731115428637,0.07279038,76457.0,76453.0,0.06535]
[1731115428932,0.07279038,76457.0,76456.0,0.03907601]
[1731115429442,0.07279038,76457.0,76454.0,0.065349]
[1731115429657,0.07279038,76457.0,76452.0,0.05218325]
[1731115429658,0.07279038,76457.0,76456.0,0.065348]
[1731115430029,0.07279038,76457.0,76456.0,0.10442501]
[1731115430749,0.07279038,76457.0,76456.0,0.065348]
[1731115431054,0.07279038,76457.0,76456.0,0.10442769]
[1731115431236,0.07279038,76457.0,76456.0,0.10443199]
[1731115431435,0.07279038,76457.0,76456.0,0.03908399]
[1731115431644,0.07279038,76457.0,76447.0,0.54563944]
[1731115431645,0.50638076,76457.0,76453.0,0.03908399]
[1731115431843,0.07279038,76453.0,76451.0,0.03908399]
[1731115432146,0.065353,76450.0,76449.0,0.03908399]
[1731115432344,0.065353,76450.0,76446.0,0.11753925]
[1731115432345,0.49894338,76450.0,76448.0,0.03908399]
[1731115432542,0.49894338,76450.0,76449.0,0.03908399]
[1731115433345,0.49894338,76450.0,76446.0,0.11753925]
[1731115433941,0.49894338,76450.0,76449.0,0.03910441]
[1731115434133,0.43359038,76450.0,76447.0,0.05218325]
[1731115434340,0.065354,76449.0,76447.0,0.05218325]
[1731115434636,0.065354,76449.0,76446.0,0.11753925]
[1731115434945,0.0459,76448.0,76446.0,0.11753925]
[1731115435146,0.0459,76448.0,76447.0,0.05218325]
[1731115435540,0.0459,76448.0,76446.0,0.065356]
[1731115435541,0.1185462,76448.0,76446.0,0.065356]
[1731115435741,0.07264629,76447.0,76440.0,0.32150499]
[1731115435948,0.14299625,76441.0,76440.0,0.38686599]
[1731115436444,0.07264629,76441.0,76440.0,0.38686599]
[1731115440350,0.07213365,76441.0,76440.0,0.38686599]
[1731115443554,0.065356,76446.0,76440.0,0.51809935]
[1731115443852,0.11112148,76448.0,76447.0,0.065355]
[1731115443853,0.06522148,76448.0,76447.0,0.065355]
[1731115444044,0.3608,76450.0,76448.0,0.065354]
[1731115444252,0.3608,76450.0,76449.0,0.08989722]
[1731115444746,0.426153,76450.0,76449.0,0.08989722]
[1731115445151,0.426153,76450.0,76449.0,0.15519676]
[1731115446143,0.47805342,76450.0,76449.0,0.06529954]
[1731115446343,0.47805342,76450.0,76448.0,0.06529954]
[1731115446543,0.07279038,76449.0,76445.0,0.05224104]
[1731115446747,0.07279038,76449.0,76438.0,0.11828585]
[1731115446748,0.07279038,76446.0,76444.0,0.05224104]
[1731115446949,0.065358,76444.0,76443.0,0.05224104]
[1731115447246,0.07279038,76444.0,76443.0,0.05223048]
[1731115447454,0.18464838,76444.0,76443.0,0.05223048]
[1731115447654,0.18464838,76444.0,76442.0,0.05223048]
[1731115447850,0.07279038,76443.0,76442.0,0.05223048]
[1731115449252,0.07279038,76443.0,76441.0,0.05223048]
[1731115449467,0.43359038,76442.0,76441.0,0.05223048]
[1731115449751,0.53327038,76442.0,76441.0,0.05223048]
[1731115449946,0.53327038,76442.0,76441.0,0.05221404]
[1731115450146,0.53327038,76442.0,76436.0,0.06529954]
[1731115450343,0.53327038,76442.0,76441.0,0.05221092]
[1731115450543,0.60541273,76442.0,76434.0,0.065366]
[1731115450749,0.07214235,76441.0,76434.0,0.065366]
[1731115451156,0.07214235,76441.0,76430.0,0.43359038]
[1731115451545,0.07214235,76441.0,76438.0,0.065362]
[1731115454057,0.03201443,76441.0,76438.0,0.065362]
[1731115454260,0.03201443,76440.0,76438.0,0.065362]
[1731115454458,0.03201443,76439.0,76438.0,0.065362]
[1731115455058,0.03201443,76439.0,76433.0,0.065366]
[1731115455362,0.065361,76440.0,76427.0,0.065372]
[1731115455363,0.49895638,76435.0,76427.0,0.065372]
[1731115455561,0.07279038,76431.0,76427.0,0.065372]
[1731115455758,0.07214255,76430.0,76428.0,0.065371]
[1731115456361,0.03201443,76429.0,76428.0,0.065371]
[1731115456657,0.03201443,76430.0,76428.0,0.065371]
[1731115456959,0.03201805,76429.0,76426.0,0.065373]
[1731115457153,0.03201805,76428.0,76426.0,0.065373]
[1731115457463,0.07279038,76431.0,76426.0,0.065373]
[1731115457464,0.03201805,76427.0,76426.0,0.065373]
[1731115457756,0.03201805,76430.0,76426.0,0.065373]
[1731115458756,0.03201805,76430.0,76425.0,0.11830327]
[1731115458757,0.065371,76429.0,76428.0,0.07836171]
[1731115458946,0.065371,76429.0,76428.0,0.16829061]
[1731115458947,0.01957491,76429.0,76428.0,0.16829061]
[1731115459151,0.0451,76430.0,76428.0,0.16829061]
[1731115459350,0.0451,76430.0,76429.0,0.0899289]
[1731115460748,0.11789038,76430.0,76429.0,0.0899289]
[1731115462669,0.4122734,76435.0,76434.0,0.065366]
[1731115462959,0.4122734,76435.0,76434.0,0.22808528]
[1731115463550,0.3608,76435.0,76434.0,0.22808528]
[1731115465157,0.07279038,76440.0,76439.0,0.065362]
[1731115465362,0.07279038,76440.0,76439.0,0.1552909]
[1731115466465,0.07279038,76440.0,76439.0,0.065362]
[1731115466764,0.3608,76442.0,76441.0,0.06536]
[1731115468557,0.3608,76442.0,76439.0,0.06522423]
[1731115468866,0.07279038,76440.0,76439.0,0.06522423]
[1731115469367,0.07279038,76440.0,76439.0,0.15463222]
[1731115469563,0.07279038,76440.0,76439.0,0.06522423]
[1731115469873,0.13815138,76440.0,76436.0,0.06522423]
[1731115470162,0.21094176,76440.0,76435.0,0.06522423]
[1731115470361,0.07279038,76436.0,76434.0,0.06522423]
[1731115470554,0.07279038,76436.0,76424.0,0.0803243]
[1731115470555,0.48019038,76435.0,76431.0,0.07836171]
[1731115470755,0.07279038,76432.0,76431.0,0.07836171]
[1731115470971,0.07279038,76432.0,76431.0,0.16754049]
[1731115471469,0.4074,76435.0,76431.0,0.16754049]
[1731115471470,0.52081273,76435.0,76431.0,0.16754049]
[1731115471664,0.01484865,76434.0,76432.0,0.08918303]
[1731115471867,0.52161273,76435.0,76433.0,0.08918303]
[1731115472062,0.52081273,76435.0,76434.0,0.08918303]
[1731115472366,0.53566322,76435.0,76434.0,0.08918303]
[1731115473268,0.58816517,76435.0,76434.0,0.08918303]
[1731115473768,0.58816517,76435.0,76422.0,0.09149935]
[1731115473769,0.70737823,76435.0,76423.0,0.00496137]
[1731115474068,0.14299927,76426.0,76423.0,0.00496137]
[1731115474263,0.14299927,76426.0,76424.0,0.065375]
[1731115474264,0.08717015,76425.0,76424.0,0.065375]
[1731115474465,0.2303168,76425.0,76424.0,0.065375]
[1731115474676,0.08731753,76425.0,76424.0,0.065375]
[1731115475460,0.08714696,76425.0,76424.0,0.065375]
[1731115477367,0.07214909,76425.0,76424.0,0.065375]
[1731115477568,0.08748306,76425.0,76424.0,0.065375]
[1731115478669,0.07214909,76425.0,76424.0,0.065375]
[1731115480566,0.08701884,76425.0,76424.0,0.065375]
[1731115480772,0.04098502,76432.0,76426.0,0.065373]
[1731115480978,0.04098502,76432.0,76427.0,0.19715173]
[1731115481270,0.065371,76429.0,76428.0,0.19715173]
[1731115483473,0.17878373,76429.0,76428.0,0.19715173]
[1731115483877,0.20740303,76429.0,76428.0,0.1562606]
[1731115484575,0.20740303,76429.0,76428.0,0.10696805]
[1731115486682,0.17878373,76429.0,76428.0,0.10696805]
[1731115489480,0.17878373,76429.0,76428.0,0.10673386]
[1731115490869,0.19389549,76429.0,76428.0,0.10673386]
[1731115492284,0.12852449,76429.0,76419.0,0.09145793]
[1731115492478,0.065374,76425.0,76420.0,0.10684778]
[1731115492674,0.01511176,76424.0,76421.0,0.10684778]
[1731115492875,0.3608,76422.0,76420.0,0.065378]
[1731115493179,0.01511176,76421.0,76420.0,0.065378]
[1731115493369,0.08793759,76421.0,76420.0,0.17228632]
[1731115495472,0.08782289,76421.0,76420.0,0.17228632]
[1731115495678,0.07282583,76421.0,76420.0,0.17228632]
[1731115495879,0.14498633,76421.0,76420.0,0.065378]
[1731115496668,0.1599318,76421.0,76420.0,0.065378]
[1731115497583,0.21219907,76421.0,76420.0,0.065378]
[1731115497784,0.14003857,76421.0,76420.0,0.065378]
[1731115498581,0.1250931,76421.0,76420.0,0.065378]
[1731115498887,0.13998619,76421.0,76420.0,0.065378]
[1731115499276,0.13994274,76421.0,76420.0,0.065378]
[1731115500779,0.1250931,76421.0,76420.0,0.065378]
[1731115502872,0.13995086,76421.0,76420.0,0.065378]
[1731115503786,0.13995086,76421.0,76420.0,0.15484758]
[1731115505281,0.1250931,76421.0,76420.0,0.15484758]
[1731115505788,0.14004752,76421.0,76420.0,0.15484758]
[1731115506485,0.1400534,76421.0,76420.0,0.26153954]
[1731115506789,0.1400534,76421.0,76420.0,0.26158427]
[1731115507291,0.1400534,76421.0,76420.0,0.15488972]
[1731115507489,0.1400534,76421.0,76420.0,0.26162303]
[1731115508687,0.1250931,76421.0,76420.0,0.26162303]
[1731115508994,0.13998007,76421.0,76420.0,0.26162303]
[1731115509984,0.01488697,76421.0,76420.0,0.26162303]
[1731115510980,0.01488697,76421.0,76420.0,0.065378]
[1731115516294,0.3608,76422.0,76421.0,0.065377]
[1731115516495,0.37566541,76422.0,76421.0,0.065377]
[1731115516794,0.3608,76422.0,76421.0,0.065377]
[1731115517792,0.37564261,76422.0,76421.0,0.065377]
[1731115519092,0.37564261,76422.0,76421.0,0.26199299]
[1731115519389,0.37573053,76422.0,76421.0,0.26199299]
[1731115519990,0.37573053,76422.0,76421.0,0.47758857]
[1731115520384,0.37573053,76422.0,76421.0,0.26199299]
[1731115520698,0.37573053,76422.0,76421.0,0.47758971]
[1731115520888,0.37573053,76422.0,76421.0,0.26200024]
[1731115521786,0.3608,76422.0,76421.0,0.26200024]
[1731115523196,0.37570057,76422.0,76421.0,0.26200024]
[1731115524599,0.01490057,76422.0,76421.0,0.26200024]
[1731115524895,0.03009721,76442.0,76432.0,0.065368]
[1731115525094,0.03009721,76442.0,76432.0,0.26944907]
[1731115525297,0.03009721,76442.0,76440.0,0.06536]
[1731115525490,0.13818483,76443.0,76441.0,0.19485499]
[1731115525685,0.13818483,76443.0,76442.0,0.08889525]
[1731115525999,0.13818483,76443.0,76440.0,0.06536]
[1731115526191,0.07282583,76443.0,76428.0,0.07282583]
[1731115526392,0.07282583,76434.0,76433.0,0.065367]
[1731115532093,0.07282583,76434.0,76424.0,0.00196267]
[1731115532294,0.07282583,76425.0,76424.0,0.06733767]
[1731115534692,0.0877755,76425.0,76424.0,0.06733767]
[1731115536402,0.01494967,76425.0,76424.0,0.06733767]
[1731115536604,0.01494967,76425.0,76424.0,0.11961105]
[1731115536903,0.3608,76429.0,76424.0,0.04806267]
[1731115537099,0.3608,76429.0,76428.0,0.10453774]
[1731115541103,0.43294971,76429.0,76428.0,0.065371]
[1731115546807,0.43294971,76429.0,76428.0,0.065371]
[1731115548097,0.43294971,76429.0,76428.0,0.15471546]
[1731115548098,0.3608,76429.0,76428.0,0.15471546]
[1731115553410,0.3608,76429.0,76428.0,0.15471618]
[1731115556003,0.3608,76429.0,76428.0,0.1307011]
[1731115556610,0.3608,76429.0,76428.0,0.22005087]
[1731115556806,0.3608,76429.0,76428.0,0.15472077]
[1731115560206,0.0872,76437.0,76436.0,0.065365]
[1731115560407,0.0872,76437.0,76436.0,0.15471477]
[1731115560607,0.14011135,76437.0,76436.0,0.15471477]
[1731115561814,0.14011135,76437.0,76436.0,0.1544961]
[1731115563015,0.2122544,76437.0,76435.0,0.09889106]
[1731115563217,0.11903266,76436.0,76435.0,0.065365]
[1731115563411,0.11903266,76436.0,76435.0,0.13819083]
[1731115563617,0.07214305,76436.0,76435.0,0.13819083]
[1731115564317,0.07214305,76436.0,76435.0,0.065365]
[1731115566236,0.11903266,76436.0,76435.0,0.065365]
[1731115566429,0.07214305,76436.0,76435.0,0.065365]
[1731115570830,0.07214305,76436.0,76427.0,0.07282583]
[1731115570831,0.07214455,76436.0,76428.0,0.065371]
[1731115571029,0.14284832,76433.0,76431.0,0.07842472]
[1731115571340,0.14011135,76437.0,76436.0,0.065365]
[1731115571540,0.14011135,76437.0,76436.0,0.1559476]
[1731115574335,0.20547535,76437.0,76436.0,0.1559476]
[1731115575627,0.20547535,76437.0,76436.0,0.22127853]
[1731115576940,0.22939849,76437.0,76436.0,0.22127853]
[1731115577336,0.59019849,76437.0,76436.0,0.22127853]
[1731115577533,0.56627535,76437.0,76436.0,0.22127853]
[1731115577933,0.50091135,76437.0,76436.0,0.22127853]
[1731115578227,0.50091135,76437.0,76436.0,0.26384533]
[1731115578839,0.50091135,76437.0,76436.0,0.1559476]
[1731115581236,0.56627535,76437.0,76436.0,0.0905826]
[1731115582740,0.50091135,76437.0,76436.0,0.0905826]
[1731115582934,0.50091135,76437.0,76436.0,0.1559476]
[1731115583736,0.41371135,76437.0,76436.0,0.23435172]
[1731115584738,0.41371135,76437.0,76436.0,0.1559476]
[1731115584936,0.3608,76437.0,76436.0,0.26371003]
[1731115585141,0.0061,76448.0,76436.0,0.33651744]
[1731115585448,0.3608,76452.0,76450.0,0.065353]
[1731115585650,0.4126724,76452.0,76451.0,0.09048748]
[1731115585837,0.43639299,76452.0,76451.0,0.09048748]
[1731115586038,0.55541225,76452.0,76450.0,0.065353]
[1731115586238,0.14273985,76451.0,76446.0,0.07282583]
[1731115586437,0.09585552,76450.0,76446.0,0.07282583]
[1731115586643,0.07213493,76449.0,76447.0,0.065355]
[1731115586838,0.07213493,76448.0,76447.0,0.065355]
[1731115587038,0.11223633,76451.0,76447.0,0.065355]
[1731115587039,0.07213493,76450.0,76447.0,0.065355]
[1731115587239,0.07213493,76449.0,76447.0,0.065355]
[1731115587440,0.07213493,76448.0,76447.0,0.065355]
[1731115587639,0.03201114,76448.0,76446.0,0.07282583]
[1731115587839,0.07213493,76447.0,76446.0,0.13818183]
[1731115588040,0.07213493,76450.0,76446.0,0.13818183]
[1731115588240,0.07213493,76449.0,76447.0,0.065355]
[1731115588446,0.07213493,76448.0,76447.0,0.065355]
[1731115588946,0.07213493,76450.0,76447.0,0.065355]
[1731115589146,0.07213493,76449.0,76447.0,0.065355]
[1731115589349,0.07213493,76448.0,76447.0,0.065355]
[1731115589544,0.03201114,76448.0,76447.0,0.065355]
[1731115589743,0.07213493,76450.0,76447.0,0.065355]
[1731115589942,0.07213493,76449.0,76447.0,0.065355]
[1731115590144,0.07213493,76448.0,76447.0,0.065355]
[1731115590845,0.07213493,76448.0,76446.0,0.07282583]
[1731115590846,0.04688433,76451.0,76449.0,0.065353]
[1731115591048,0.11901955,76451.0,76449.0,0.065353]
[1731115591241,0.07213522,76450.0,76449.0,0.065353]
[1731115593041,0.14297074,76451.0,76449.0,0.065353]
[1731115593242,0.4787434,76452.0,76449.0,0.065353]
[1731115593436,0.4780234,76452.0,76449.0,0.065353]
[1731115593851,0.4780234,76452.0,76450.0,0.065353]
[1731115596451,0.07282583,76451.0,76450.0,0.065353]
[1731115597853,0.065355,76448.0,76445.0,0.065357]
[1731115598051,0.07282583,76447.0,76442.0,0.07282583]
[1731115598354,0.07282583,76447.0,76446.0,0.065356]
[1731115601251,0.14496191,76447.0,76442.0,0.07282583]
[1731115601453,0.07213608,76446.0,76442.0,0.07282583]
[1731115601862,0.14292528,76443.0,76442.0,0.13818583]
[1731115602059,0.17493693,76443.0,76442.0,0.13818583]
[1731115602357,0.07213608,76443.0,76442.0,0.06536]
[1731115602751,0.14292853,76443.0,76442.0,0.06536]
[1731115602959,0.21506461,76443.0,76442.0,0.06536]
[1731115603555,0.18305296,76443.0,76442.0,0.06536]
[1731115603753,0.07213608,76445.0,76438.0,0.07282583]
[1731115603955,0.14292741,76442.0,76441.0,0.06536]
[1731115604158,0.07213608,76442.0,76439.0,0.065362]
[1731115604454,0.07213608,76441.0,76440.0,0.065361]
[1731115606757,0.14292741,76441.0,76440.0,0.065361]
[1731115606958,0.07213608,76441.0,76438.0,0.07282583]
[1731115607157,0.07213608,76440.0,76439.0,0.065362]
[1731115607355,0.03201165,76440.0,76439.0,0.065362]
[1731115607658,0.03201165,76440.0,76438.0,0.07282583]
[1731115607862,0.14292741,76442.0,76441.0,0.06536]
[1731115608061,0.07213721,76442.0,76439.0,0.065362]
[1731115608260,0.07282583,76447.0,76440.0,0.0911505]
[1731115608474,0.065357,76445.0,76444.0,0.0652936]
[1731115608760,0.065357,76445.0,76443.0,0.0652936]
[1731115609360,0.065357,76445.0,76443.0,0.1306516]
[1731115609559,0.065357,76445.0,76444.0,0.0652936]
[1731115610662,0.065357,76445.0,76444.0,0.15647543]
[1731115611465,0.065357,76445.0,76444.0,0.09118183]
[1731115611767,0.065357,76445.0,76444.0,0.15653983]
[1731115613060,0.065357,76445.0,76444.0,0.15668016]
[1731115616271,0.09736916,76445.0,76444.0,0.065358]
[1731115616461,0.13749423,76445.0,76444.0,0.065358]
[1731115616867,0.13749423,76445.0,76444.0,0.04077637]
[1731115621068,0.06536,76441.0,76439.0,0.065362]
[1731115621267,0.07213723,76440.0,76439.0,0.065362]
[1731115621465,0.03201216,76440.0,76435.0,0.065365]
[1731115621672,0.065364,76438.0,76435.0,0.065365]
[1731115621975,0.15583877,76437.0,76431.0,0.065369]
[1731115622176,0.065368,76432.0,76424.0,0.06733667]
[1731115622477,0.07213877,76431.0,76424.0,0.1401625]
[1731115623270,0.065368,76432.0,76430.0,0.0784006]
[1731115623570,0.065368,76432.0,76431.0,0.17012504]
[1731115624277,0.065368,76432.0,76431.0,0.09172444]
[1731115625575,0.065368,76432.0,76431.0,0.09179353]
[1731115630176,0.065368,76432.0,76431.0,0.0917623]
[1731115630379,0.065367,76433.0,76431.0,0.06528843]
[1731115630569,0.065368,76432.0,76431.0,0.06528843]
[1731115630971,0.065369,76431.0,76430.0,0.06528843]
[1731115631279,0.06537,76430.0,76425.0,0.065374]
[1731115634174,0.065372,76428.0,76425.0,0.065374]
[1731115637082,0.12446068,76431.0,76425.0,0.065374]
[1731115637282,0.12446068,76431.0,76424.0,0.00196267]
[1731115637585,0.065373,76426.0,76424.0,0.00196267]
[1731115638371,0.12446068,76431.0,76424.0,0.00196267]
[1731115638372,0.05898974,76431.0,76425.0,0.32881938]